bitfinex-derivatives/quotes_BTCF0:USTF0_20240820
["timestamp","ask_amount","ask_price","bid_price","bid_amount"]
[1724116268995,0.3748,60620.0,60611.0,0.08271052]
[1724116268996,0.3608,60615.0,60611.0,0.08871052]
[1724116269289,0.3608,60615.0,60613.0,0.002]
[1724116269805,0.3608,60615.0,60611.0,0.08871052]
[1724116270186,0.3608,60615.0,60611.0,0.00624752]
[1724116270389,0.443263,60612.0,60611.0,0.00624752]
[1724116270688,0.3608,60612.0,60611.0,0.00024752]
[1724116270892,0.3608,60612.0,60598.0,0.00016454]
[1724116271195,0.3608,60602.0,60598.0,0.00016454]
[1724116272194,0.3608,60602.0,60598.0,0.00116454]
[1724116272694,0.3618,60602.0,60598.0,0.00116454]
[1724116272892,0.082478,60601.0,60598.0,0.00116454]
[1724116273093,0.082479,60600.0,60598.0,0.00116454]
[1724116273893,0.082479,60600.0,60598.0,0.00616454]
[1724116274487,0.082479,60600.0,60598.0,0.00116454]
[1724116274692,0.083479,60600.0,60598.0,0.00616454]
[1724116275290,0.083479,60600.0,60576.0,0.09606207]
[1724116275291,0.73294,60599.0,60576.0,0.09606207]
[1724116275496,0.3608,60583.0,60576.0,0.09606207]
[1724116275691,0.3608,60583.0,60576.0,0.082511]
[1724116276398,0.00017819,60582.0,60576.0,0.082511]
[1724116276595,0.00017819,60582.0,60576.0,0.083511]
[1724116277095,0.00017819,60582.0,60576.0,0.002]
[1724116277096,0.082505,60581.0,60576.0,0.002]
[1724116277312,0.082506,60580.0,60576.0,0.002]
[1724116277696,0.082506,60580.0,60576.0,0.001]
[1724116278003,0.082506,60580.0,60576.0,0.002]
[1724116278702,0.082506,60580.0,60576.0,0.001]
[1724116278703,0.083506,60580.0,60576.0,0.001]
[1724116278903,0.3608,60578.0,60572.0,0.1202]
[1724116279597,0.3608,60578.0,60568.0,0.5888]
[1724116279598,0.443316,60573.0,60568.0,0.00152]
[1724116279788,0.443316,60573.0,60563.0,0.082528]
[1724116279789,0.082517,60572.0,60563.0,0.082528]
[1724116279996,0.3608,60568.0,60560.0,0.228]
[1724116280194,0.3608,60568.0,60566.0,0.082525]
[1724116280601,0.3608,60568.0,60566.0,0.577845]
[1724116280799,0.3608,60568.0,60567.0,0.49532]
[1724116281000,0.00017819,60571.0,60570.0,0.08252]
[1724116281600,0.00017819,60571.0,60570.0,0.5778]
[1724116281801,0.00024752,60581.0,60580.0,0.082506]
[1724116282202,0.3608,60590.0,60580.0,0.8952]
[1724116282397,0.3608,60590.0,60588.0,0.082495]
[1724116282595,0.3608,60590.0,60589.0,0.1159]
[1724116283104,0.3608,60590.0,60574.0,0.062078]
[1724116283105,0.001,60581.0,60580.0,0.083506]
[1724116283603,0.001,60581.0,60580.0,0.579706]
[1724116283808,0.002,60581.0,60580.0,0.979706]
[1724116284197,0.3608,60590.0,60585.0,0.082499]
[1724116284602,0.3608,60590.0,60588.0,0.001]
[1724116285006,0.082494,60589.0,60588.0,0.001]
[1724116285201,0.001,60581.0,60580.0,0.001]
[1724116285404,0.3618,60581.0,60580.0,0.001]
[1724116286296,0.3608,60581.0,60574.0,0.11674752]
[1724116286502,0.3608,60575.0,60574.0,0.11674752]
[1724116287906,0.3618,60575.0,60574.0,0.11874752]
[1724116288805,0.3628,60575.0,60574.0,0.12174752]
[1724116289402,0.3608,60581.0,60574.0,1.24498752]
[1724116289604,0.3608,60581.0,60574.0,0.34974752]
[1724116289810,0.00024752,60584.0,60582.0,0.082503]
[1724116290003,0.3608,60583.0,60582.0,0.082503]
[1724116290494,0.3608,60583.0,60582.0,0.977703]
[1724116290805,0.00024752,60584.0,60582.0,0.977703]
[1724116291005,0.00024752,60584.0,60583.0,0.4952]
[1724116291504,0.00024752,60584.0,60583.0,0.8952]
[1724116291710,0.3608,60590.0,60583.0,0.8952]
[1724116292006,0.3608,60600.0,60588.0,0.228]
[1724116292321,0.3608,60600.0,60589.0,0.1115]
[1724116292607,0.3608,60600.0,60595.0,0.082485]
[1724116293602,0.3608,60600.0,60596.0,0.082484]
[1724116293803,0.3608,60600.0,60597.0,0.082482]
[1724116294011,0.3608,60600.0,60598.0,0.082481]
[1724116294402,0.00024752,60601.0,60600.0,0.082479]
[1724116294598,0.00024752,60601.0,60600.0,0.577519]
[1724116294900,0.00024752,60601.0,60600.0,0.977519]
[1724116295210,0.2311,60616.0,60610.0,0.082465]
[1724116295401,3.77,60615.0,60610.0,0.082465]
[1724116295804,3.77,60615.0,60612.0,0.082462]
[1724116296110,0.3608,60614.0,60612.0,0.082462]
[1724116296699,0.3608,60614.0,60607.0,0.00024752]
[1724116296700,0.082467,60609.0,60607.0,0.00024752]
[1724116296905,0.474,60608.0,60607.0,0.00024752]
[1724116298008,0.474,60608.0,60600.0,0.001]
[1724116298311,0.474,60608.0,60585.0,0.119]
[1724116298312,0.3608,60601.0,60586.0,0.04810867]
[1724116298611,0.3608,60601.0,60585.0,0.13060767]
[1724116298612,0.443286,60595.0,60585.0,0.13060767]
[1724116298909,0.443286,60595.0,60586.0,0.082498]
[1724116299405,0.3608,60595.0,60586.0,0.082498]
[1724116299608,0.3608,60595.0,60586.0,0.085498]
[1724116300301,0.08249,60592.0,60586.0,0.085498]
[1724116300503,0.3608,60589.0,60586.0,0.003]
[1724116300905,3.77,60588.0,60586.0,0.003]
[1724116301202,3.852496,60588.0,60586.0,0.003]
[1724116301408,0.082499,60586.0,60583.0,0.00024752]
[1724116302006,3.77092,60588.0,60586.0,0.002]
[1724116302205,3.77,60588.0,60586.0,0.002]
[1724116302408,3.77,60588.0,60586.0,0.003]
[1724116302613,0.001,60589.0,60586.0,0.003]
[1724116303001,0.001,60589.0,60586.0,0.002]
[1724116303814,0.3608,60591.0,60585.0,0.082499]
[1724116303815,0.001,60586.0,60585.0,0.082499]
[1724116304709,0.001,60589.0,60586.0,0.002]
[1724116305418,0.3608,60591.0,60583.0,0.00024752]
[1724116305605,0.001,60586.0,60585.0,0.002]
[1724116305801,0.3618,60586.0,60585.0,0.002]
[1724116306611,0.3618,60586.0,60583.0,0.00024752]
[1724116306612,0.082499,60585.0,60583.0,0.00024752]
[1724116306811,0.082503,60582.0,60564.0,0.04810867]
[1724116307005,0.082503,60582.0,60563.0,0.3608]
[1724116307006,0.3608,60570.0,60563.0,0.3608]
[1724116307210,0.3608,60570.0,60562.0,0.01334605]
[1724116307211,0.082522,60569.0,60562.0,0.01334605]
[1724116307415,0.082522,60569.0,60556.0,0.422878]
[1724116307416,0.082522,60569.0,60563.0,0.082529]
[1724116308106,0.082522,60569.0,60563.0,0.084529]
[1724116308714,0.083522,60569.0,60563.0,0.084529]
[1724116309105,0.3618,60570.0,60564.0,0.082528]
[1724116309311,0.001,60569.0,60565.0,0.082526]
[1724116310310,0.3618,60570.0,60565.0,0.082526]
[1724116310311,0.3628,60570.0,60565.0,0.082526]
[1724116310618,0.3618,60570.0,60565.0,0.082526]
[1724116310823,0.001,60569.0,60565.0,0.082526]
[1724116311608,0.3628,60570.0,60565.0,0.082526]
[1724116311806,0.3618,60570.0,60565.0,0.082526]
[1724116312121,0.3618,60570.0,60565.0,0.083526]
[1724116312122,0.001,60569.0,60565.0,0.083526]
[1724116313021,0.3628,60570.0,60565.0,0.083526]
[1724116313518,0.001,60569.0,60565.0,0.083526]
[1724116313821,0.002,60569.0,60565.0,0.084526]
[1724116314316,0.001,60569.0,60565.0,0.084526]
[1724116314516,0.001,60570.0,60568.0,0.082523]
[1724116314908,0.001,60570.0,60568.0,0.577843]
[1724116315120,0.00024752,60572.0,60566.0,0.22972]
[1724116315121,0.00024752,60572.0,60571.0,0.082518]
[1724116316511,0.00024752,60572.0,60571.0,0.083518]
[1724116316715,0.00124752,60572.0,60571.0,0.083518]
[1724116317724,0.36304752,60572.0,60571.0,0.002]
[1724116319724,0.36104752,60572.0,60571.0,0.002]
[1724116319919,0.36204752,60572.0,60571.0,0.003]
[1724116321129,0.44456452,60572.0,60571.0,0.003]
[1724116322721,0.36204752,60572.0,60571.0,0.003]
[1724116326020,0.36204752,60572.0,60571.0,0.085518]
[1724116328635,0.36204752,60572.0,60571.0,0.09850351]
[1724116328937,0.36204752,60572.0,60571.0,0.085518]
[1724116331432,0.36204752,60572.0,60571.0,0.13362667]
[1724116333138,0.36204752,60572.0,60571.0,0.085518]
[1724116333334,0.00124752,60572.0,60571.0,0.085518]
[1724116334842,0.00124752,60572.0,60571.0,0.13408923]
[1724116334843,0.36204752,60572.0,60571.0,0.13408923]
[1724116335030,0.36204752,60572.0,60571.0,0.13408707]
[1724116335229,0.36204752,60572.0,60571.0,0.147596]
[1724116335435,0.36204752,60572.0,60571.0,0.085518]
[1724116339251,0.36204752,60572.0,60571.0,0.003]
[1724116341137,0.44456452,60572.0,60571.0,0.003]
[1724116344144,0.44456452,60572.0,60571.0,0.00275229]
[1724116345339,1.33984452,60572.0,60571.0,0.00275229]
[1724116346548,0.082531,60562.0,60560.0,0.00024752]
[1724116346752,1.91432,60561.0,60560.0,5.2e-07]
[1724116347046,1.91432,60561.0,60546.0,0.04860878]
[1724116347047,0.082548,60549.0,60546.0,0.04860878]
[1724116347255,0.443348,60549.0,60546.0,0.04860878]
[1724116347557,0.443348,60549.0,60544.0,0.04860878]
[1724116347938,0.443348,60549.0,60543.0,0.04860878]
[1724116348349,0.443348,60549.0,60531.0,0.443372]
[1724116348350,0.443348,60549.0,60538.0,0.04860878]
[1724116348648,0.443348,60549.0,60535.0,0.04860878]
[1724116348849,0.443348,60549.0,60534.0,0.16000878]
[1724116349458,0.443348,60549.0,60535.0,0.1198]
[1724116349643,0.45705085,60549.0,60535.0,0.1198]
[1724116349852,0.45705085,60549.0,60535.0,0.16840878]
[1724116350157,0.45705085,60549.0,60534.0,0.04860878]
[1724116350363,0.53959885,60549.0,60532.0,0.06131035]
[1724116350659,0.53959885,60549.0,60532.0,0.01270157]
[1724116350847,0.53959885,60549.0,60548.0,1.8e-07]
[1724116350848,1.43507885,60549.0,60548.0,1.8e-07]
[1724116351051,0.08257,60534.0,60526.0,0.1114]
[1724116351248,0.3608,60532.0,60526.0,0.1114]
[1724116351650,0.443372,60532.0,60526.0,0.1114]
[1724116352051,0.00018423,60531.0,60526.0,0.1114]
[1724116352466,0.08275723,60531.0,60526.0,0.1114]
[1724116353070,0.3608,60527.0,60526.0,0.1114]
[1724116353864,0.3608,60527.0,60522.0,0.01291782]
[1724116354068,0.3608,60527.0,60513.0,0.27680878]
[1724116354069,0.082586,60522.0,60513.0,0.2282]
[1724116354369,0.00024773,60524.0,60516.0,0.082593]
[1724116354869,0.00024773,60524.0,60517.0,0.082592]
[1724116355369,0.00024773,60524.0,60514.0,0.1134]
[1724116356068,0.001,60522.0,60519.0,0.082588]
[1724116356573,0.3608,60520.0,60519.0,0.082588]
[1724116357763,0.3618,60520.0,60519.0,0.082588]
[1724116357973,0.3618,60520.0,60514.0,0.1134]
[1724116358366,0.3618,60520.0,60514.0,0.195996]
[1724116358868,0.3628,60520.0,60515.0,0.082594]
[1724116359376,0.001,60520.0,60516.0,0.49572]
[1724116359674,0.00024773,60524.0,60523.0,0.082584]
[1724116362275,0.00024773,60524.0,60523.0,0.083584]
[1724116362276,0.00124773,60524.0,60523.0,0.083584]
[1724116363666,0.00124773,60524.0,60523.0,0.001]
[1724116364274,0.72512773,60524.0,60523.0,0.001]
[1724116364479,1.48592773,60524.0,60523.0,0.001]
[1724116364978,1.48592773,60524.0,60505.0,0.121]
[1724116364979,1.60657408,60524.0,60505.0,0.121]
[1724116365179,0.082606,60507.0,60505.0,0.121]
[1724116365380,0.00020318,60506.0,60505.0,0.121]
[1724116366175,0.08281118,60506.0,60500.0,0.114]
[1724116366373,0.3608,60504.0,60500.0,0.114]
[1724116367169,0.3608,60504.0,60500.0,0.196615]
[1724116367468,0.3608,60504.0,60500.0,0.115]
[1724116368484,0.3608,60504.0,60502.0,0.082612]
[1724116368980,0.3618,60504.0,60502.0,0.082612]
[1724116369372,0.3628,60504.0,60502.0,0.082612]
[1724116372882,0.3618,60504.0,60502.0,0.082612]
[1724116373082,0.3628,60504.0,60499.0,0.01308255]
[1724116373277,0.3628,60504.0,60499.0,0.00014656]
[1724116375274,0.3618,60504.0,60499.0,0.00014656]
[1724116375476,0.3628,60504.0,60499.0,0.04875534]
[1724116375983,0.8161,60503.0,60499.0,0.00014656]
[1724116376579,0.082615,60500.0,60499.0,0.00014656]
[1724116377285,0.578495,60500.0,60499.0,0.00014656]
[1724116377476,0.082615,60500.0,60499.0,0.00014656]
[1724116378283,0.578495,60500.0,60499.0,0.00014656]
[1724116379073,0.082615,60500.0,60499.0,0.00014656]
[1724116379278,0.097615,60500.0,60499.0,0.00014656]
[1724116379985,0.1105739,60500.0,60499.0,0.00014656]
[1724116381484,0.0279589,60500.0,60499.0,0.00014656]
[1724116382182,0.015,60500.0,60499.0,0.00014656]
[1724116382685,0.3608,60503.0,60500.0,0.082615]
[1724116382987,0.3608,60503.0,60499.0,0.00014656]
[1724116382988,0.00020318,60506.0,60502.0,0.42558116]
[1724116383389,0.00020318,60506.0,60504.0,0.082609]
[1724116383586,0.00020318,60506.0,60502.0,0.3608]
[1724116383587,0.00020318,60506.0,60502.0,0.06478116]
[1724116383782,0.00020318,60506.0,60501.0,0.06478116]
[1724116383984,0.005,60503.0,60501.0,0.06478116]
[1724116384287,0.005,60503.0,60499.0,0.19958079]
[1724116384685,0.005,60503.0,60499.0,0.18692772]
[1724116384992,0.016,60503.0,60501.0,0.082614]
[1724116385284,0.016,60503.0,60500.0,0.06578116]
[1724116385487,0.005,60503.0,60499.0,0.06492772]
[1724116385678,0.005,60503.0,60501.0,0.0486333]
[1724116385679,0.3608,60502.0,60501.0,0.0486333]
[1724116385884,0.001,60503.0,60499.0,0.00614656]
[1724116386111,0.001,60503.0,60502.0,0.082613]
[1724116386281,0.001,60503.0,60502.0,0.14739416]
[1724116386590,0.002,60503.0,60502.0,0.14739416]
[1724116386981,0.001,60503.0,60502.0,0.14739416]
[1724116387385,0.001,60503.0,60502.0,0.27029416]
[1724116388190,0.001,60503.0,60502.0,0.205513]
[1724116388387,1.8e-07,60506.0,60505.0,0.082608]
[1724116388577,0.3608,60526.0,60506.0,0.2282]
[1724116388782,0.3608,60526.0,60521.0,0.04864078]
[1724116388986,0.3608,60526.0,60524.0,0.04864078]
[1724116389187,0.3608,60526.0,60524.0,0.13122278]
[1724116389384,0.3608,60526.0,60524.0,0.04864078]
[1724116389588,0.3608,60526.0,60517.0,0.589]
[1724116389589,0.3608,60526.0,60523.0,0.04864078]
[1724116389890,0.3608,60526.0,60523.0,0.13122378]
[1724116389891,0.3618,60526.0,60523.0,0.13122378]
[1724116390085,0.3628,60526.0,60524.0,0.13122278]
[1724116390275,0.3628,60526.0,60524.0,0.082582]
[1724116390480,0.3618,60526.0,60524.0,0.13122278]
[1724116390691,0.3618,60526.0,60524.0,0.082582]
[1724116391186,0.3618,60526.0,60525.0,0.04864078]
[1724116391187,0.001,60526.0,60525.0,0.04864078]
[1724116392279,0.001,60526.0,60524.0,0.082582]
[1724116392484,0.001,60526.0,60523.0,0.007]
[1724116392694,0.002,60526.0,60523.0,0.005]
[1724116393187,0.3608,60528.0,60521.0,0.13122678]
[1724116393393,0.003,60526.0,60525.0,0.005]
[1724116394979,0.001,60526.0,60525.0,0.005]
[1724116395489,0.082579,60527.0,60523.0,0.005]
[1724116395693,0.003,60526.0,60523.0,0.004]
[1724116396391,0.084581,60526.0,60525.0,0.004]
[1724116396792,0.978221,60526.0,60525.0,0.004]
[1724116397096,0.082581,60526.0,60525.0,0.004]
[1724116397288,0.083581,60526.0,60523.0,0.005]
[1724116397683,0.001,60526.0,60523.0,0.005]
[1724116398396,0.003,60526.0,60523.0,0.086583]
[1724116398790,0.002,60526.0,60525.0,0.003]
[1724116399182,0.3628,60526.0,60525.0,0.003]
[1724116399391,0.3608,60526.0,60525.0,0.003]
[1724116399588,0.3628,60526.0,60525.0,0.003]
[1724116400295,0.3628,60526.0,60523.0,0.086583]
[1724116401797,0.3628,60526.0,60523.0,0.004]
[1724116401999,0.3628,60526.0,60525.0,0.004]
[1724116402000,0.3608,60526.0,60525.0,0.004]
[1724116402198,0.3608,60526.0,60525.0,0.086581]
[1724116402887,0.3618,60526.0,60525.0,0.082581]
[1724116403390,0.3638,60526.0,60525.0,0.310781]
[1724116403593,0.002,60526.0,60525.0,0.310781]
[1724116403786,0.002,60526.0,60525.0,0.314781]
[1724116404094,0.002,60526.0,60525.0,0.086581]
[1724116404891,0.001,60526.0,60525.0,0.086581]
[1724116405585,0.002,60526.0,60525.0,0.086581]
[1724116406194,0.0842065,60526.0,60525.0,0.086581]
[1724116406697,0.002,60526.0,60525.0,0.086581]
[1724116407999,0.001,60526.0,60525.0,0.086581]
[1724116408301,0.002,60526.0,60525.0,0.086581]
[1724116409698,0.1005866,60526.0,60525.0,0.086581]
[1724116410594,0.002,60526.0,60525.0,0.086581]
[1724116412100,0.1007124,60526.0,60525.0,0.086581]
[1724116412296,0.002,60526.0,60525.0,0.086581]
[1724116414901,0.002,60526.0,60525.0,0.204381]
[1724116415295,0.3608,60539.0,60525.0,0.51]
[1724116415597,0.3608,60539.0,60535.0,0.2282]
[1724116416092,0.3608,60539.0,60537.0,0.082565]
[1724116416406,0.3618,60539.0,60537.0,0.082565]
[1724116417094,0.37402057,60539.0,60537.0,0.082565]
[1724116417300,0.37402057,60539.0,60538.0,0.082563]
[1724116417604,0.001,60539.0,60538.0,0.082563]
[1724116417901,0.00024773,60544.0,60538.0,0.082563]
[1724116417902,0.00024773,60544.0,60543.0,0.082557]
[1724116418101,0.00024773,60544.0,60543.0,0.310757]
[1724116418295,0.082536,60558.0,60543.0,0.78864378]
[1724116418499,0.3608,60553.0,60549.0,0.082548]
[1724116418696,0.3608,60553.0,60547.0,0.3608]
[1724116420406,0.3608,60553.0,60547.0,0.3628]
[1724116421002,0.3608,60553.0,60548.0,0.082549]
[1724116421203,0.07229551,60552.0,60548.0,0.082549]
[1724116421403,0.1229536,60551.0,60550.0,0.03801211]
[1724116421592,0.23669209,60551.0,60550.0,0.15081211]
[1724116421793,0.23669209,60551.0,60550.0,0.27031211]
[1724116422396,0.07229551,60551.0,60550.0,0.27031211]
[1724116422597,0.23669209,60551.0,60550.0,0.27031211]
[1724116422902,0.07229551,60551.0,60550.0,0.27031211]
[1724116423101,0.1229536,60551.0,60550.0,0.27031211]
[1724116423311,0.07229551,60551.0,60550.0,0.27031211]
[1724116423996,0.07229551,60551.0,60550.0,0.27131211]
[1724116423997,0.08029551,60551.0,60550.0,0.27131211]
[1724116424398,0.03988001,60551.0,60550.0,0.27131211]
[1724116424600,0.08029551,60551.0,60550.0,0.27131211]
[1724116425198,0.04188001,60551.0,60550.0,0.27131211]
[1724116425897,0.04188001,60551.0,60550.0,0.76675211]
[1724116425898,0.17314973,60551.0,60550.0,0.76675211]
[1724116426101,0.04188001,60551.0,60550.0,0.76675211]
[1724116427197,0.04188001,60551.0,60550.0,1.16675211]
[1724116428001,1e-08,60551.0,60550.0,1.16675211]
[1724116428307,0.00024773,60556.0,60555.0,0.08254]
[1724116428608,0.00024773,60556.0,60555.0,0.67154]
[1724116428804,0.00024773,60556.0,60555.0,1.56694]
[1724116429511,0.00724773,60556.0,60555.0,1.56794]
[1724116429809,0.00724773,60556.0,60555.0,0.80714]
[1724116430007,0.00724773,60556.0,60555.0,0.001]
[1724116430208,0.36804773,60556.0,60555.0,0.001]
[1724116430701,0.36804773,60556.0,60555.0,0.002]
[1724116430702,0.37304773,60556.0,60555.0,0.002]
[1724116431203,0.37304773,60556.0,60555.0,0.2302]
[1724116432403,0.37304773,60556.0,60555.0,0.002]
[1724116433304,0.49074773,60556.0,60555.0,0.002]
[1724116435707,0.49074773,60556.0,60555.0,0.2302]
[1724116436207,0.5311604,60556.0,60555.0,0.2302]
[1724116438103,0.56303825,60556.0,60555.0,0.2302]
[1724116439110,0.44533825,60556.0,60555.0,0.31274]
[1724116439305,0.40492558,60556.0,60555.0,0.31274]
[1724116440099,0.44533825,60556.0,60555.0,0.31274]
[1724116440302,0.04412558,60556.0,60555.0,0.31274]
[1724116440905,0.04412222,60556.0,60555.0,1.33894]
[1724116441104,0.04412222,60556.0,60555.0,1.73894]
[1724116441298,0.04412222,60556.0,60555.0,1.56894]
[1724116441703,0.04412071,60556.0,60555.0,1.58119047]
[1724116442109,0.01224773,60556.0,60555.0,1.58119047]
[1724116442310,0.04412014,60556.0,60555.0,1.58119047]
[1724116443310,0.3608,60571.0,60555.0,1.49865047]
[1724116443516,0.3608,60571.0,60563.0,0.2282]
[1724116444512,0.37321766,60572.0,60570.0,0.08252]
[1724116444700,0.37321766,60572.0,60570.0,0.31072]
[1724116444701,0.005,60571.0,60570.0,0.31072]
[1724116445314,0.011,60571.0,60570.0,0.31072]
[1724116446015,0.005,60571.0,60570.0,0.31072]
[1724116446214,0.018,60571.0,60570.0,0.31172]
[1724116446605,0.013,60571.0,60570.0,0.31272]
[1724116447219,0.09514564,60571.0,60570.0,0.31272]
[1724116447414,0.013,60571.0,60570.0,0.31272]
[1724116447616,0.09514564,60571.0,60570.0,0.31272]
[1724116448315,0.082531,60562.0,60561.0,0.00024773]
[1724116448614,0.990798,60571.0,60561.0,0.00024773]
[1724116448615,0.08231427,60564.0,60561.0,0.00024773]
[1724116448911,0.082523,60568.0,60561.0,0.22844773]
[1724116448912,0.44312428,60562.0,60561.0,0.22844773]
[1724116449515,0.45612428,60562.0,60561.0,0.31197973]
[1724116450210,0.3738,60562.0,60561.0,0.31197973]
[1724116450406,0.013,60562.0,60561.0,0.31197973]
[1724116450612,0.013,60562.0,60561.0,0.31297973]
[1724116453918,0.3738,60562.0,60561.0,0.31297973]
[1724116454109,0.3738,60562.0,60561.0,0.08477973]
[1724116454513,0.3738,60562.0,60561.0,0.00224773]
[1724116458013,0.46880988,60562.0,60561.0,0.00224773]
[1724116458216,0.46880988,60562.0,60561.0,1e-08]
[1724116458217,0.61768847,60562.0,60561.0,1e-08]
[1724116458422,0.7087597,60562.0,60561.0,1e-08]
[1724116459319,0.5092287,60562.0,60561.0,1e-08]
[1724116461322,0.5917597,60562.0,60561.0,1e-08]
[1724116462320,0.082538,60557.0,60552.0,0.19612101]
[1724116462519,0.3608,60554.0,60549.0,0.082548]
[1724116462719,0.18214157,60553.0,60550.0,0.2282]
[1724116462917,0.18214157,60553.0,60533.0,0.31377]
[1724116462918,0.18214538,60552.0,60528.0,0.36232]
[1724116463223,0.443341,60555.0,60526.0,0.3229]
[1724116463224,0.804154,60545.0,60538.0,0.01230831]
[1724116463415,0.18214538,60544.0,60538.0,0.01230831]
[1724116463615,0.18214538,60544.0,60538.0,0.01255604]
[1724116464022,0.18214538,60544.0,60543.0,0.00215533]
[1724116464522,0.12510163,60544.0,60543.0,0.00100001]
[1724116464718,0.12510163,60544.0,60538.0,0.00024773]
[1724116464919,0.443362,60539.0,60538.0,0.00024773]
[1724116465115,0.56631563,60539.0,60538.0,0.00024773]
[1724116465314,0.56631563,60539.0,60520.0,0.1154]
[1724116465315,0.082575,60530.0,60523.0,0.2282]
[1724116465521,0.12295363,60529.0,60523.0,0.2282]
[1724116465722,0.3608,60524.0,60523.0,0.2282]
[1724116465921,0.48375363,60524.0,60523.0,0.2282]
[1724116466322,0.3608,60524.0,60523.0,0.2282]
[1724116466824,0.3608,60524.0,60523.0,0.2422]
[1724116467127,0.00015533,60529.0,60523.0,0.2422]
[1724116467429,0.082577,60528.0,60523.0,0.2422]
[1724116467828,0.3608,60524.0,60523.0,0.2422]
[1724116468615,0.3618,60524.0,60523.0,0.2542]
[1724116472220,0.3618,60524.0,60523.0,0.026]
[1724116476428,0.3618,60524.0,60523.0,0.012]
[1724116476632,0.3618,60524.0,60523.0,0.026]
[1724116476831,0.3608,60524.0,60523.0,0.014]
[1724116477018,0.444383,60524.0,60523.0,0.023]
[1724116477327,0.444383,60524.0,60523.0,0.013]
[1724116484427,0.3618,60524.0,60523.0,0.013]
[1724116484631,0.3618,60524.0,60523.0,0.095584]
[1724116487937,0.37387513,60524.0,60523.0,0.095584]
[1724116489532,0.3618,60524.0,60523.0,0.095584]
[1724116490628,0.3618,60524.0,60523.0,0.1442583]
[1724116491327,0.3618,60524.0,60523.0,0.095584]
[1724116493434,0.3618,60524.0,60523.0,0.16050778]
[1724116493628,0.3618,60524.0,60523.0,0.095584]
[1724116495337,0.32049156,60524.0,60523.0,0.17665197]
[1724116495938,0.32049156,60524.0,60523.0,1.19815697]
[1724116496139,0.00015533,60529.0,60523.0,1.62788719]
[1724116496439,0.00015533,60529.0,60528.0,0.589]
[1724116496638,0.00015533,60529.0,60528.0,1.08464]
[1724116496941,0.00015533,60529.0,60528.0,1.567217]
[1724116497440,1e-08,60530.0,60529.0,0.578216]
[1724116497736,1e-08,60530.0,60529.0,0.627276]
[1724116497927,1e-08,60530.0,60529.0,1.090516]
[1724116498130,1e-08,60530.0,60529.0,1.139576]
[1724116498334,1e-08,60530.0,60529.0,1.090516]
[1724116498939,1e-08,60530.0,60529.0,0.73958265]
[1724116499134,1e-08,60530.0,60529.0,0.70568272]
[1724116499336,1e-08,60530.0,60529.0,0.21004272]
[1724116499534,0.00300001,60530.0,60529.0,0.21004272]
[1724116500044,0.00300001,60530.0,60529.0,0.197876]
[1724116500642,0.00300001,60530.0,60529.0,0.003]
[1724116500847,0.00300001,60530.0,60517.0,0.00024773]
[1724116501144,0.082583,60524.0,60517.0,0.00024773]
[1724116501334,0.3608,60526.0,60517.0,0.00024773]
[1724116501531,0.3608,60526.0,60521.0,0.082586]
[1724116502545,0.3608,60526.0,60522.0,0.2282]
[1724116502732,0.3608,60526.0,60522.0,0.310785]
[1724116502932,0.082583,60524.0,60522.0,0.2282]
[1724116503344,0.3618,60526.0,60522.0,0.310785]
[1724116503548,0.3618,60526.0,60523.0,0.082584]
[1724116504042,0.3618,60526.0,60524.0,0.082581]
[1724116504246,0.3618,60526.0,60525.0,0.1157]
[1724116504439,1e-08,60530.0,60526.0,0.08258]
[1724116504645,1e-08,60530.0,60529.0,0.04910223]
[1724116505246,1e-08,60530.0,60527.0,0.082578]
[1724116505745,1e-08,60530.0,60528.0,0.35985206]
[1724116505937,1e-08,60530.0,60528.0,0.710777]
[1724116506134,0.00300001,60530.0,60529.0,0.73903985]
[1724116506337,0.3465,60549.0,60529.0,1.14103985]
[1724116506338,0.082552,60547.0,60529.0,1.14103985]
[1724116506537,0.082552,60547.0,60540.0,0.04905099]
[1724116507246,0.082552,60547.0,60539.0,0.2282]
[1724116507247,0.3465,60549.0,60539.0,0.27725099]
[1724116507544,0.082561,60540.0,60537.0,0.04929872]
[1724116507743,0.082562,60539.0,60537.0,0.00024773]
[1724116508047,0.482562,60539.0,60537.0,0.00024773]
[1724116508347,0.082562,60539.0,60537.0,0.00024773]
[1724116508542,0.578122,60539.0,60537.0,0.00024773]
[1724116508747,0.578122,60539.0,60537.0,0.00124773]
[1724116508949,0.082574,60530.0,60528.0,0.04905099]
[1724116509141,0.082576,60529.0,60526.0,0.04905099]
[1724116509450,0.3608,60531.0,60528.0,0.04905099]
[1724116509647,0.3608,60531.0,60530.0,0.04905099]
[1724116509954,0.3608,60531.0,60529.0,0.04905099]
[1724116510147,0.3608,60531.0,60528.0,0.04905099]
[1724116510645,0.37316258,60531.0,60528.0,0.04905099]
[1724116511449,0.37316258,60531.0,60526.0,0.007]
[1724116511450,0.001,60529.0,60526.0,0.007]
[1724116511846,0.09880577,60527.0,60526.0,0.007]
[1724116512046,0.09880577,60527.0,60526.0,0.001]
[1724116512247,0.09880577,60530.0,60526.0,0.49664]
[1724116512447,0.00024773,60537.0,60531.0,0.082573]
[1724116512448,0.09880577,60532.0,60531.0,0.082573]
[1724116512638,0.00024773,60537.0,60534.0,0.082569]
[1724116512639,0.09880577,60535.0,60534.0,0.082569]
[1724116512847,0.0990535,60537.0,60534.0,0.02581342]
[1724116513045,0.0990535,60537.0,60535.0,0.02581342]
[1724116513046,0.00024773,60537.0,60535.0,0.02581342]
[1724116513241,0.00024773,60537.0,60536.0,0.02581159]
[1724116513450,0.00024773,60537.0,60531.0,0.2282]
[1724116513644,0.00024773,60537.0,60531.0,0.310773]
[1724116513645,0.08232549,60532.0,60531.0,0.310773]